fUSD/lending_fUSD_20260527
["ID","MTS","AMOUNT","RATE_DAILY","PERIOD"]
[423129504,1779871843000,-214.890145,0.00039423,30]
[423129500,1779871843000,-151.0,0.00039423,30]
[423129507,1779871843000,-151.0,0.00039423,30]
[423129508,1779871843000,-151.0,0.00039423,30]
[423129505,1779871843000,-151.0,0.00039423,30]
[423129502,1779871843000,-163.542454,0.00039423,30]
[423129496,1779871843000,-151.0,0.00039423,30]
[423129495,1779871843000,-151.0,0.00039423,30]
[423129498,1779871843000,-151.0,0.00039423,30]
[423129497,1779871843000,-151.0,0.00039423,30]
[423129506,1779871843000,-151.0,0.00039423,30]
[423129611,1779871844000,-541.36,0.00039423,30]
[423129619,1779871844000,-541.36,0.00039423,30]
[423129615,1779871844000,-541.36,0.00039423,30]
[423129621,1779871844000,-541.36,0.00039423,30]
[423129609,1779871844000,-351.652775,0.00039423,30]
[423129601,1779871844000,-351.652775,0.00039423,30]
[423129613,1779871844000,-541.36,0.00039423,30]
[423129607,1779871844000,-351.652775,0.00039423,30]
[423129605,1779871844000,-351.652775,0.00039423,30]
[423129603,1779871844000,-351.652775,0.00039423,30]
[423129623,1779871844000,-541.36,0.00039423,30]
[423129617,1779871844000,-541.36,0.00039423,30]
[423129625,1779871844000,-541.36,0.00039423,30]
[423129663,1779871844000,-396.996399,0.00039423,30]
[423129644,1779871844000,-541.36,0.00039423,30]
[423129633,1779871844000,-541.36,0.00039423,30]
[423129640,1779871844000,-541.36,0.00039423,30]
[423129629,1779871844000,-541.36,0.00039423,30]
[423129627,1779871844000,-541.36,0.00039423,30]
[423129642,1779871844000,-541.36,0.00039423,30]
[423129646,1779871844000,-541.36,0.00039423,30]
[423129635,1779871844000,-541.36,0.00039423,30]
[423129631,1779871844000,-541.36,0.00039423,30]
[423129650,1779871844000,-215.461528,0.00039423,30]
[423129648,1779871844000,-541.43678634,0.00039423,30]
[423129652,1779871844000,-292.752533,0.00039423,30]
[423129600,1779871844000,-351.652775,0.00039423,30]
[423129637,1779871844000,-541.36,0.00039423,30]
[423129598,1779871844000,-351.652775,0.00039423,30]
[423129564,1779871844000,-419.055256,0.00039423,30]
[423129595,1779871844000,-351.652775,0.00039423,30]
[423129665,1779871844000,-396.996399,0.00039423,30]
[423129547,1779871844000,-419.055256,0.00039423,30]
[423129545,1779871844000,-419.055256,0.00039423,30]
[423129542,1779871844000,-419.055256,0.00039423,30]
[423129543,1779871844000,-552.718161,0.00039423,30]
[423129544,1779871844000,-552.718161,0.00039423,30]
[423129546,1779871844000,-552.718161,0.00039423,30]
[423129549,1779871844000,-151.0,0.00039423,30]
[423129551,1779871844000,-552.718161,0.00039423,30]
[423129553,1779871844000,-419.055256,0.00039423,30]
[423129554,1779871844000,-151.0,0.00039423,30]
[423129558,1779871844000,-419.055256,0.00039423,30]
[423129560,1779871844000,-419.055256,0.00039423,30]
[423129593,1779871844000,-351.652775,0.00039423,30]
[423129556,1779871844000,-419.055256,0.00039423,30]
[423129569,1779871844000,-151.0,0.00039423,30]
[423129567,1779871844000,-151.0,0.00039423,30]
[423129571,1779871844000,-233.300099,0.00039423,30]
[423129573,1779871844000,-151.0,0.00039423,30]
[423129575,1779871844000,-351.652775,0.00039423,30]
[423129585,1779871844000,-351.652775,0.00039423,30]
[423129587,1779871844000,-351.652775,0.00039423,30]
[423129589,1779871844000,-351.652775,0.00039423,30]
[423129583,1779871844000,-351.652775,0.00039423,30]
[423129577,1779871844000,-151.0,0.00039423,30]
[423129579,1779871844000,-351.652775,0.00039423,30]
[423129581,1779871844000,-202.015173,0.00039423,30]
[423129591,1779871844000,-351.652775,0.00039423,30]
[423129562,1779871844000,-419.055256,0.00039423,30]
[423129667,1779871844000,-1008.44916,0.00039423,30]
[423129669,1779871844000,-1008.44916,0.00039423,30]
[423129765,1779871844000,-866.453017,0.00039423,30]
[423129736,1779871844000,-209.599637,0.00039423,30]
[423129737,1779871844000,-1710.42265,0.00039423,30]
[423129740,1779871844000,-151.0,0.00039423,30]
[423129730,1779871844000,-157.861288,0.00039423,30]
[423129744,1779871844000,-151.0,0.00039423,30]
[423129738,1779871844000,-157.861288,0.00039423,30]
[423129728,1779871844000,-1710.42265,0.00039423,30]
[423129741,1779871844000,-157.861288,0.00039423,30]
[423129732,1779871844000,-157.861288,0.00039423,30]
[423129734,1779871844000,-157.861288,0.00039423,30]
[423129746,1779871844000,-1710.42265,0.00039423,30]
[423129752,1779871844000,-157.861288,0.00039423,30]
[423129749,1779871844000,-151.0,0.00039423,30]
[423129764,1779871844000,-1710.42265,0.00039423,30]
[423129754,1779871844000,-151.0,0.00039423,30]
[423129762,1779871844000,-151.0,0.00039423,30]
[423129753,1779871844000,-866.453017,0.00039423,30]
[423129757,1779871844000,-1710.42265,0.00039423,30]
[423129750,1779871844000,-1710.42265,0.00039423,30]
[423129747,1779871844000,-157.861288,0.00039423,30]
[423129759,1779871844000,-866.453017,0.00039423,30]
[423129761,1779871844000,-157.861288,0.00039423,30]
[423129756,1779871844000,-157.861288,0.00039423,30]
[423129767,1779871844000,-151.0,0.00039423,30]
[423129671,1779871844000,-396.996399,0.00039423,30]
[423129770,1779871844000,-866.453017,0.00039423,30]
[423129768,1779871844000,-1710.42265,0.00039423,30]
[423129726,1779871844000,-192.894395,0.00039423,30]
[423129715,1779871844000,-157.861288,0.00039423,30]
[423129743,1779871844000,-1710.42265,0.00039423,30]
[423129717,1779871844000,-157.861288,0.00039423,30]
[423129672,1779871844000,-1008.44916,0.00039423,30]
[423129709,1779871844000,-151.0,0.00039423,30]
[423129660,1779871844000,-1008.44916,0.00039423,30]
[423129656,1779871844000,-1008.44916,0.00039423,30]
[423129658,1779871844000,-396.996399,0.00039423,30]
[423129674,1779871844000,-396.996399,0.00039423,30]
[423129676,1779871844000,-396.996399,0.00039423,30]
[423129686,1779871844000,-396.996399,0.00039423,30]
[423129688,1779871844000,-1008.44916,0.00039423,30]
[423129689,1779871844000,-151.0,0.00039423,30]
[423129694,1779871844000,-396.996399,0.00039423,30]
[423129680,1779871844000,-151.0,0.00039423,30]
[423129678,1779871844000,-1008.44916,0.00039423,30]
[423129692,1779871844000,-396.996399,0.00039423,30]
[423129654,1779871844000,-1008.44916,0.00039423,30]
[423129684,1779871844000,-151.0,0.00039423,30]
[423129695,1779871844000,-1008.44916,0.00039423,30]
[423129713,1779871844000,-157.861288,0.00039423,30]
[423129719,1779871844000,-151.0,0.00039423,30]
[423129711,1779871844000,-396.996399,0.00039423,30]
[423129701,1779871844000,-151.0,0.00039423,30]
[423129707,1779871844000,-396.996399,0.00039423,30]
[423129705,1779871844000,-1008.44916,0.00039423,30]
[423129703,1779871844000,-396.996399,0.00039423,30]
[423129723,1779871844000,-220.678487,0.00039423,30]
[423129699,1779871844000,-1008.44916,0.00039423,30]
[423129697,1779871844000,-151.0,0.00039423,30]
[423129682,1779871844000,-1008.44916,0.00039423,30]
[423129721,1779871844000,-1710.42265,0.00039423,30]
[423129841,1779871845000,-500.0,0.00039423,30]
[423129852,1779871845000,-500.0,0.00039423,30]
[423129836,1779871845000,-500.0,0.00039423,30]
[423129838,1779871845000,-500.0,0.00039423,30]
[423129827,1779871845000,-500.0,0.00039423,30]
[423129839,1779871845000,-500.0,0.00039423,30]
[423129812,1779871845000,-500.0,0.00039423,30]
[423129807,1779871845000,-500.0,0.00039423,30]
[423129814,1779871845000,-500.0,0.00039423,30]
[423129854,1779871845000,-500.0,0.00039423,30]
[423129828,1779871845000,-151.0,0.00039423,30]
[423129856,1779871845000,-500.0,0.00039423,30]
[423129862,1779871845000,-500.0,0.00039423,30]
[423129846,1779871845000,-500.0,0.00039423,30]
[423129858,1779871845000,-154.85654,0.00039423,30]
[423129860,1779871845000,-500.0,0.00039423,30]
[423129848,1779871845000,-500.0,0.00039423,30]
[423129850,1779871845000,-500.0,0.00039423,30]
[423129864,1779871845000,-500.0,0.00039423,30]
[423129866,1779871845000,-500.0,0.00039423,30]
[423129876,1779871845000,-151.0,0.00039423,30]
[423129872,1779871845000,-500.0,0.00039423,30]
[423129875,1779871845000,-500.0,0.00039423,30]
[423129877,1779871845000,-500.0,0.00039423,30]
[423129823,1779871845000,-500.0,0.00039423,30]
[423129844,1779871845000,-500.0,0.00039423,30]
[423129810,1779871845000,-866.453017,0.00039423,30]
[423129871,1779871845000,-500.0,0.00039423,30]
[423129817,1779871845000,-500.0,0.00039423,30]
[423129776,1779871845000,-866.453017,0.00039423,30]
[423129778,1779871845000,-151.0,0.00039423,30]
[423129780,1779871845000,-151.0,0.00039423,30]
[423129781,1779871845000,-239.072686,0.00039423,30]
[423129784,1779871845000,-1710.42265,0.00039423,30]
[423129783,1779871845000,-1710.42265,0.00039423,30]
[423129772,1779871845000,-151.0,0.00039423,30]
[423129773,1779871845000,-866.453017,0.00039423,30]
[423129775,1779871845000,-151.0,0.00039423,30]
[423129786,1779871845000,-500.0,0.00039423,30]
[423129788,1779871845000,-1710.42265,0.00039423,30]
[423129791,1779871845000,-500.0,0.00039423,30]
[423129815,1779871845000,-866.453017,0.00039423,30]
[423129792,1779871845000,-500.0,0.00039423,30]
[423129802,1779871845000,-866.453017,0.00039423,30]
[423129804,1779871845000,-500.0,0.00039423,30]
[423129800,1779871845000,-500.0,0.00039423,30]
[423129799,1779871845000,-866.453017,0.00039423,30]
[423129797,1779871845000,-500.0,0.00039423,30]
[423129805,1779871845000,-500.0,0.00039423,30]
[423129795,1779871845000,-500.0,0.00039423,30]
[423129809,1779871845000,-500.0,0.00039423,30]
[423129820,1779871845000,-151.0,0.00039423,30]
[423129818,1779871845000,-500.0,0.00039423,30]
[423129825,1779871845000,-151.0,0.00039423,30]
[423129822,1779871845000,-866.453017,0.00039423,30]
[423129794,1779871845000,-866.453017,0.00039423,30]
[423129873,1779871845000,-500.0,0.00039423,30]
[423129789,1779871845000,-500.0,0.00039423,30]
[423129868,1779871845000,-500.0,0.00039423,30]
[423129915,1779871845000,-151.0,0.00039423,30]
[423129918,1779871845000,-823.790356,0.00039423,30]
[423129919,1779871845000,-151.0,0.00039423,30]
[423129909,1779871845000,-823.790356,0.00039423,30]
[423129913,1779871845000,-823.790356,0.00039423,30]
[423129917,1779871845000,-151.0,0.00039423,30]
[423129914,1779871845000,-823.790356,0.00039423,30]
[423129921,1779871845000,-1064.329233,0.00039423,30]
[423129920,1779871845000,-171.894428,0.00039423,30]
[423129923,1779871845000,-1064.329233,0.00039423,30]
[423129935,1779871845000,-1064.329233,0.00039423,30]
[423129922,1779871845000,-1064.329233,0.00039423,30]
[423129912,1779871845000,-151.0,0.00039423,30]
[423129925,1779871845000,-166.483048,0.00039423,30]
[423129934,1779871845000,-151.0,0.00039423,30]
[423129933,1779871845000,-1064.329233,0.00039423,30]
[423129924,1779871845000,-1064.329233,0.00039423,30]
[423129929,1779871845000,-1064.329233,0.00039423,30]
[423129928,1779871845000,-1064.329233,0.00039423,30]
[423129926,1779871845000,-1064.329233,0.00039423,30]
[423129932,1779871845000,-151.0,0.00039423,30]
[423129927,1779871845000,-1064.329233,0.00039423,30]
[423129931,1779871845000,-1064.329233,0.00039423,30]
[423129930,1779871845000,-1064.329233,0.00039423,30]
[423129936,1779871845000,-151.0,0.00039423,30]
[423129869,1779871845000,-500.0,0.00039423,30]
[423129937,1779871845000,-151.0,0.00039423,30]
[423129916,1779871845000,-823.790356,0.00039423,30]
[423129910,1779871845000,-151.0,0.00039423,30]
[423129906,1779871845000,-823.790356,0.00039423,30]
[423129874,1779871845000,-500.0,0.00039423,30]
[423129870,1779871845000,-500.0,0.00039423,30]
[423129879,1779871845000,-319.1543372,0.00039423,30]
[423129889,1779871845000,-823.790356,0.00039423,30]
[423129881,1779871845000,-151.0,0.00039423,30]
[423129911,1779871845000,-247.673572,0.00039423,30]
[423129882,1779871845000,-823.790356,0.00039423,30]
[423129880,1779871845000,-151.0,0.00039423,30]
[423129884,1779871845000,-823.790356,0.00039423,30]
[423129883,1779871845000,-823.790356,0.00039423,30]
[423129886,1779871845000,-823.790356,0.00039423,30]
[423129885,1779871845000,-823.790356,0.00039423,30]
[423129888,1779871845000,-151.0,0.00039423,30]
[423129878,1779871845000,-151.0,0.00039423,30]
[423129891,1779871845000,-151.0,0.00039423,30]
[423129887,1779871845000,-823.790356,0.00039423,30]
[423129902,1779871845000,-823.790356,0.00039423,30]
[423129908,1779871845000,-151.0,0.00039423,30]
[423129907,1779871845000,-151.0,0.00039423,30]
[423129899,1779871845000,-151.0,0.00039423,30]
[423129905,1779871845000,-151.0,0.00039423,30]
[423129904,1779871845000,-823.790356,0.00039423,30]
[423129900,1779871845000,-151.0,0.00039423,30]
[423129897,1779871845000,-151.0,0.00039423,30]
[423129895,1779871845000,-151.0,0.00039423,30]
[423129893,1779871845000,-823.790356,0.00039423,30]
[423129890,1779871845000,-151.0,0.00039423,30]
[423129948,1779871846000,-31501.70772371,0.00039423,27]
[423129952,1779871846000,-1245.61888089,0.00033992,2]
[423129951,1779871846000,-867.66,0.00033992,2]
[423129950,1779871846000,-123.31808788,0.00033992,2]
[423129949,1779871846000,-511.21191212,0.0002689,2]
[423129962,1779871846000,-350.52107331,0.00033992,2]
[423129943,1779871846000,-151.0,0.00039423,30]
[423129938,1779871846000,-1064.329233,0.00039423,30]
[423129947,1779871846000,-233.656634,0.00039423,30]
[423129941,1779871846000,-1064.329233,0.00039423,30]
[423129946,1779871846000,-151.0,0.00039423,30]
[423129942,1779871846000,-1064.329233,0.00039423,30]
[423129940,1779871846000,-151.0,0.00039423,30]
[423129939,1779871846000,-1064.329233,0.00039423,30]
[423129965,1779871846000,-6825.3431505,0.00033992,2]
[423129944,1779871846000,-151.0,0.00039423,30]
[423129977,1779871846000,-300.0,0.00035481,2]
[423129945,1779871846000,-151.0,0.00039423,30]
[423129974,1779871846000,-653.74439782,0.00033992,2]
[423129993,1779871846000,-504.0,0.00039423,27]
[423129979,1779871846000,-300.0,0.00035481,2]
[423129991,1779871846000,-15427.17026111,0.00039423,27]
[423129983,1779871846000,-500.0,0.00038366,30]
[423129985,1779871846000,-500.0,0.0003864,30]
[423129989,1779871846000,-6063.0,0.00038672,2]
[423129982,1779871846000,-1068.40163352,0.00035481,2]
[423129984,1779871846000,-500.0,0.0003864,30]
[423129988,1779871846000,-500.0,0.0003864,30]
[423129986,1779871846000,-500.0,0.0003864,30]
[423129992,1779871846000,-1750.0174385,0.00039423,27]
[423129976,1779871846000,-18854.83455276,0.0003488,2]
[423129980,1779871846000,-300.88219415,0.00035481,2]
[423129978,1779871846000,-605.31118564,0.00035481,2]
[423129975,1779871846000,-8788.62896236,0.00033992,2]
[423129981,1779871846000,-528.48327171,0.00035481,2]
[423129987,1779871846000,-500.0,0.0003864,30]
[423129990,1779871846000,-264.250154,0.00039423,30]
[423130040,1779871847000,-246.2983548,0.00039423,27]
[423130043,1779871847000,-2937.21688312,0.00039423,27]
[423130171,1779872150000,6.8278243,0.00011966,2]
[423130174,1779872379000,150.0,0.00010593,2]
[423130175,1779872440000,150.0,0.00010593,2]
[423130176,1779872490000,218.75130873,0.0001,2]
[423130177,1779872527000,2330.24869127,7.945e-05,2]
[423130178,1779872527000,1046.00475773,7.945e-05,2]
[423130179,1779872581000,-150.0,0.00010921,2]
[423130180,1779872592000,-285.0,0.00011159,2]
[423130187,1779872606000,151.0,0.000107,2]
[423130192,1779872635000,-151.0,0.000108,2]
[423130193,1779872645000,-151.0,0.000109,2]
[423130194,1779872646000,151.0,0.000107,2]
[423130195,1779872688000,-522.18598028,0.000108,2]
[423130196,1779872699000,-477.81401972,0.000108,2]
[423130197,1779872741000,-151.0,0.000109,2]
[423130199,1779872742000,-58.59597373,0.00011159,2]
[423130198,1779872742000,-151.0,0.00011,2]
[423130200,1779872795000,-104.92402627,0.00011159,2]
[423130202,1779872830000,-182.82387347,0.00015164,2]
[423130201,1779872830000,-150.0,0.00011259,2]
[423130203,1779872848000,-250.0,0.00014916,2]
[423130204,1779872901000,-517.74612653,0.00015164,2]
[423130205,1779872954000,-250.0,0.00014,2]
[423130219,1779872955000,-700.57,0.00019952,2]
[423130218,1779872955000,-1200.0,0.00019951,2]
[423130215,1779872955000,-2694.169704,0.00017789,2]
[423130217,1779872955000,-700.57,0.00019154,2]
[423130216,1779872955000,-700.57,0.00018356,2]
[423130214,1779872955000,-700.57,0.00017558,2]
[423130213,1779872955000,-700.57,0.0001676,2]
[423130208,1779872955000,-150.0,0.00015624,2]
[423130211,1779872955000,-700.57,0.00015962,2]
[423130210,1779872955000,-150.0,0.00015927,2]
[423130209,1779872955000,-150.0,0.00015776,2]
[423130220,1779872955000,-300.0,0.0002012,2]
[423130207,1779872955000,-150.0,0.00015472,2]
[423130206,1779872955000,-150.0,0.00015321,2]
[423130212,1779872955000,-168.02,0.00016712,2]
[423130221,1779872955000,-793.38669858,0.0002075,2]
[423130235,1779872955000,-524.0,0.00025082,2]
[423130223,1779872955000,-219.81,0.00021273,2]
[423130224,1779872955000,-700.57,0.00021548,2]
[423130237,1779872955000,-700.57,0.00025539,2]
[423130239,1779872955000,-371.47,0.00025786,2]
[423130238,1779872955000,-219.81,0.00025786,2]
[423130236,1779872955000,-500.0,0.00025425,2]
[423130234,1779872955000,-527.0,0.00025082,2]
[423130232,1779872955000,-193.98327468,0.0002438,2]
[423130233,1779872955000,-700.57,0.00024741,2]
[423130230,1779872955000,-150.0,0.00024174,7]
[423130227,1779872955000,-700.57,0.00022346,2]
[423130228,1779872955000,-700.57,0.00023144,2]
[423130229,1779872955000,-700.57,0.00023943,2]
[423130226,1779872955000,-300.0,0.00022345,2]
[423130222,1779872955000,-700.57,0.0002075,2]
[423130225,1779872955000,-469.0,0.0002183,2]
[423130231,1779872955000,-371.47,0.00024174,2]
[423130249,1779872956000,-173.85,0.00028457,2]
[423130252,1779872956000,-150.0,0.00029,2]
[423130254,1779872956000,-700.57,0.00029529,2]
[423130253,1779872956000,-180.34,0.00029,2]
[423130250,1779872956000,-624.04,0.00028632,120]
[423130251,1779872956000,-700.57,0.00028731,2]
[423130245,1779872956000,-268.7730373,0.00028298,2]
[423130241,1779872956000,-700.57,0.00026337,2]
[423130246,1779872956000,-240.3069627,0.00028298,2]
[423130247,1779872956000,-157.25,0.00028312,120]
[423130243,1779872956000,-1500.0,0.00027397,2]
[423130244,1779872956000,-700.57,0.00027933,2]
[423130242,1779872956000,-700.57,0.00027135,2]
[423130240,1779872956000,-2647.57689446,0.00025974,2]
[423130248,1779872956000,-1124.6142026,0.00028339,2]
[423130256,1779872956000,-166.0,0.00029712,30]
[423130261,1779872956000,-262.56900006,0.0003,120]
[423130258,1779872956000,-505.01350014,0.0002984,2]
[423130255,1779872956000,-152.0,0.00029533,3]
[423130273,1779872956000,-6208.21919581,0.00031619,2]
[423130272,1779872956000,-450.5,0.00031619,2]
[423130270,1779872956000,-1958.43689419,0.00031066,2]
[423130269,1779872956000,-2847.16310581,0.00031066,2]
[423130268,1779872956000,-1120.48,0.00030771,120]
[423130265,1779872956000,-1125.3,0.0003062,2]
[423130271,1779872956000,-500.0,0.00031425,2]
[423130266,1779872956000,-999.99,0.0003062,2]
[423130267,1779872956000,-299.99,0.0003062,12]
[423130259,1779872956000,-500.0,0.00029973,2]
[423130263,1779872956000,-7075.47,0.0003062,2]
[423130257,1779872956000,-500.0,0.00029712,30]
[423130260,1779872956000,-500.0,0.00029986,30]
[423130264,1779872956000,-5278.19,0.0003062,2]
[423130262,1779872956000,-700.57,0.00030327,2]
[423130274,1779872974000,-163.06372499,0.00031619,2]
[423130297,1779873031000,-905.31118564,0.00031519,116]
[423130290,1779873031000,-160.0,0.000306,2]
[423130291,1779873031000,-160.0,0.000306,2]
[423130292,1779873031000,-160.0,0.000306,2]
[423130294,1779873031000,-160.0,0.000306,2]
[423130293,1779873031000,-160.0,0.000306,2]
[423130296,1779873031000,-180.35756202,0.00031136,7]
[423130298,1779873031000,-1467.2970792,0.00031619,2]
[423130295,1779873031000,-160.0,0.000306,2]
[423130301,1779873031000,-1221.115,0.00032326,32]
[423130300,1779873031000,-152.0,0.00031914,4]
[423130299,1779873031000,-360.71512405,0.00031727,7]
[423130302,1779873031000,-1544.0,0.00032337,3]
[423130304,1779873031000,-500.0,0.00032338,30]
[423130305,1779873031000,-500.0,0.00032338,30]
[423130306,1779873031000,-500.0,0.00032338,30]
[423130303,1779873031000,-400.0,0.00032337,2]
[423130307,1779873031000,-500.0,0.00032338,30]
[423130368,1779873032000,-950.32029804,0.0003548,2]
[423130381,1779873032000,-578.28315025,0.0003548,2]
[423130366,1779873032000,-865.6208675,0.0003548,2]
[423130363,1779873032000,-300.0,0.0003548,2]
[423130360,1779873032000,-344.45437934,0.0003548,2]
[423130361,1779873032000,-527.62572404,0.0003548,2]
[423130378,1779873032000,-300.0,0.0003548,2]
[423130358,1779873032000,-1263.96825586,0.0003548,2]
[423130348,1779873032000,-300.0,0.0003548,2]
[423130343,1779873032000,-300.0,0.0003548,2]
[423130376,1779873032000,-594.79850986,0.0003548,2]
[423130379,1779873032000,-464.48677942,0.0003548,2]
[423130382,1779873032000,-452.52893397,0.0003548,2]
[423130372,1779873032000,-1148.83589152,0.0003548,2]
[423130370,1779873032000,-300.09384644,0.0003548,2]
[423130384,1779873032000,-300.0,0.0003548,2]
[423130386,1779873032000,-484.76763572,0.0003548,2]
[423130390,1779873032000,-424.15316134,0.0003548,2]
[423130399,1779873032000,-493.38669858,0.0003548,2]
[423130388,1779873032000,-310.28230408,0.0003548,2]
[423130391,1779873032000,-300.0,0.0003548,2]
[423130404,1779873032000,-300.0,0.0003548,2]
[423130401,1779873032000,-300.0,0.0003548,2]
[423130350,1779873032000,-300.0,0.0003548,2]
[423130374,1779873032000,-310.02493426,0.0003548,2]
[423130345,1779873032000,-300.99795142,0.0003548,2]
[423130317,1779873032000,-2000.0,0.00034247,30]
[423130354,1779873032000,-300.0,0.0003548,2]
[423130308,1779873032000,-799.188,0.00032338,30]
[423130310,1779873032000,-167.46,0.00032742,30]
[423130309,1779873032000,-1200.0,0.00032611,3]
[423130314,1779873032000,-1442.38,0.00033778,2]
[423130311,1779873032000,-500.0,0.00032986,2]
[423130316,1779873032000,-312.48621316,0.00034123,108]
[423130312,1779873032000,-173.85,0.000332,2]
[423130313,1779873032000,-167.46,0.00033604,30]
[423130315,1779873032000,-883.79,0.00033904,120]
[423130318,1779873032000,-200.0,0.00034254,2]
[423130403,1779873032000,-605.31118564,0.0003548,2]
[423130319,1779873032000,-152.0,0.00034295,5]
[423130356,1779873032000,-308.37494133,0.0003548,2]
[423130320,1779873032000,-167.46,0.00034466,30]
[423130322,1779873032000,-150.0,0.00034726,4]
[423130332,1779873032000,-1915.57,0.00035014,2]
[423130324,1779873032000,-150.0,0.00034726,4]
[423130328,1779873032000,-560.0,0.00034768,2]
[423130326,1779873032000,-245.00898,0.00034726,4]
[423130330,1779873032000,-150.0,0.00035,4]
[423130335,1779873032000,-294.10431835,0.00035207,120]
[423130339,1779873032000,-894.65434383,0.0003548,2]
[423130337,1779873032000,-167.46,0.00035327,30]
[423130341,1779873032000,-302.21937029,0.0003548,2]
[423130352,1779873032000,-300.0,0.0003548,2]
[423130340,1779873032000,-727.07827244,0.0003548,2]
[423130321,1779873032000,-1120.48,0.00034617,120]
[423130395,1779873032000,-300.0,0.0003548,2]
[423130421,1779873032000,-344.45437934,0.0003548,2]
[423130397,1779873032000,-542.54668693,0.0003548,2]
[423130442,1779873032000,-605.31118564,0.0003548,2]
[423130446,1779873032000,-151.0,0.00035481,2]
[423130440,1779873032000,-493.38669858,0.0003548,2]
[423130444,1779873032000,-528.48327171,0.0003548,2]
[423130393,1779873032000,-1096.2926835,0.0003548,2]
[423130443,1779873032000,-300.0,0.0003548,2]
[423130448,1779873032000,-2500.0,0.00035569,2]
[423130447,1779873032000,-177.88848839,0.0003549,2]
[423130449,1779873032000,-158.2393808,0.00035569,2]
[423130451,1779873032000,-2384.48482862,0.00035569,2]
[423130450,1779873032000,-169.07280212,0.00035569,2]
[423130452,1779873032000,-959.58057949,0.00035569,2]
[423130454,1779873032000,-191.4554308,0.0003559,2]
[423130453,1779873032000,-6083.35186827,0.00035569,2]
[423130456,1779873032000,-188.89,0.00035659,2]
[423130455,1779873032000,-150.0,0.00035616,60]
[423130457,1779873032000,-188.89,0.00035659,2]
[423130462,1779873032000,-500.0,0.00035665,15]
[423130460,1779873032000,-188.89,0.00035659,2]
[423130461,1779873032000,-500.0,0.00035665,2]
[423130458,1779873032000,-188.89,0.00035659,2]
[423130459,1779873032000,-188.89,0.00035659,2]
[423130463,1779873032000,-500.0,0.00035665,2]
[423130464,1779873032000,-371.58607359,0.00035665,15]
[423130465,1779873032000,-128.41392641,0.00035665,15]
[423130441,1779873032000,-300.0,0.0003548,2]
[423130438,1779873032000,-1096.2926835,0.0003548,2]
[423130445,1779873032000,-1068.40163352,0.0003548,2]
[423130437,1779873032000,-300.0,0.0003548,2]
[423130408,1779873032000,-1068.40163352,0.0003548,2]
[423130407,1779873032000,-528.48327171,0.0003548,2]
[423130410,1779873032000,-894.65434383,0.0003548,2]
[423130412,1779873032000,-727.07827244,0.0003548,2]
[423130414,1779873032000,-302.21937029,0.0003548,2]
[423130439,1779873032000,-300.0,0.0003548,2]
[423130418,1779873032000,-313.90684074,0.0003548,2]
[423130417,1779873032000,-300.99795142,0.0003548,2]
[423130422,1779873032000,-527.62572404,0.0003548,2]
[423130420,1779873032000,-1263.96825586,0.0003548,2]
[423130419,1779873032000,-300.0,0.0003548,2]
[423130423,1779873032000,-300.0,0.0003548,2]
[423130416,1779873032000,-300.0,0.0003548,2]
[423130425,1779873032000,-950.32029804,0.0003548,2]